bitfinex/quotes_ETHUSD_20241001
["timestamp","ask_amount","ask_price","bid_price","bid_amount"]
[1727795274130,0.88572428,2511.8,2511.6,1.5797]
[1727795274464,1.08935484,2512.3,2511.7,3.98136]
[1727795274620,0.3402641,2512.2,2512.1,3.0]
[1727795274805,1.08935484,2512.9,2511.9,3.0]
[1727795275009,1.07874301,2513.0,2512.4,3.98025]
[1727795275010,1.13422332,2512.8,2512.4,3.98025]
[1727795275206,1.13422332,2512.8,2511.9,3.0]
[1727795275207,0.34027575,2512.8,2512.6,3.97994]
[1727795275408,0.34027575,2512.8,2512.1,7.74026836]
[1727795275409,0.71916201,2513.4,2513.0,3.97925]
[1727795275659,0.71916201,2513.4,2512.8,3.0]
[1727795275660,0.58923804,2513.3,2512.7,1.5031]
[1727795275806,0.58923804,2513.2,2512.7,1.5031]
[1727795276009,0.24947934,2513.1,2512.7,0.30606863]
[1727795276248,0.24947934,2513.1,2512.2,6.98049]
[1727795276249,4.31899301,2513.1,2512.2,3.98055]
[1727795276449,4.31899301,2513.1,2512.5,3.97996]
[1727795276450,0.33974301,2513.1,2512.5,3.97996]
[1727795276746,3.97872,2513.4,2512.5,3.97998]
[1727795276747,3.97871,2513.4,2512.5,3.97998]
[1727795276915,0.24947295,2513.3,2512.7,3.97976]
[1727795277119,0.24947295,2513.2,2512.7,3.97976]
[1727795277350,4.1017929,2513.5,2512.7,3.97963]
[1727795277550,3.97878,2513.4,2512.5,3.98006]
[1727795277854,3.97878,2513.4,2512.6,3.97992]
[1727795278016,3.97878,2513.4,2512.5,3.98006]
[1727795278220,3.97988,2512.7,2511.5,7.74026836]
[1727795278410,3.97963,2512.8,2512.0,3.98073]
[1727795278747,1.526,2513.3,2511.6,3.98145]
[1727795278905,3.98007,2512.6,2511.5,7.74026836]
[1727795279103,3.98007,2512.6,2511.8,3.98114]
[1727795279304,3.97978,2512.7,2512.0,3.98087]
[1727795279502,3.97963,2512.8,2511.8,3.98114]
[1727795279707,3.98014,2512.5,2511.7,3.98125]
[1727795279947,1.526,2513.3,2511.6,4.59267]
[1727795280153,3.98012,2512.5,2511.7,3.98124]
[1727795280354,3.97979,2512.7,2511.6,0.6112]
[1727795280355,3.98061,2512.2,2511.6,0.6112]
[1727795280513,3.97916,2513.1,2511.6,0.6112]
[1727795280514,3.98044,2512.3,2511.6,0.6112]
[1727795280712,7.96006,2512.6,2511.7,3.98132]
[1727795280913,1.526,2513.3,2511.6,0.6112]
[1727795280914,3.97968,2512.8,2511.6,0.6112]
[1727795281151,3.97968,2512.8,2510.9,7.74026836]
[1727795281152,3.98085,2512.1,2511.3,3.9819]
[1727795281479,3.98085,2512.1,2510.2,3.98366]
[1727795281480,3.98197,2511.4,2510.5,3.98318]
[1727795281765,3.98314,2510.6,2509.8,0.6112]
[1727795281945,3.98314,2510.6,2509.6,3.98463]
[1727795282114,1.6162,2511.3,2509.5,3.9848]
[1727795282481,3.98363,2510.3,2509.3,0.6112]
[1727795282677,3.98331,2510.5,2509.4,0.0796757]
[1727795282896,1.6162,2511.3,2509.4,0.0796757]
[1727795283180,3.98331,2510.5,2509.4,3.98497]
[1727795283511,1.5406,2510.5,2508.7,0.6112]
[1727795283782,3.9854,2509.2,2508.3,3.98668]
[1727795283998,3.9856,2509.1,2508.3,3.98668]
[1727795284291,3.98456,2509.7,2508.8,3.98596]
[1727795284585,5.62842,2510.4,2509.0,3.9856]
[1727795284735,3.98434,2509.9,2509.2,3.98532]
[1727795284933,3.98434,2509.9,2509.0,3.9856]
[1727795284934,3.98439,2509.8,2509.0,3.9856]
[1727795285196,3.98365,2510.3,2508.6,0.3962]
[1727795285475,1.6449,2510.4,2508.5,3.98629]
[1727795285476,3.98529,2509.3,2508.5,3.98629]
[1727795285689,3.98529,2509.3,2508.6,3.98624]
[1727795285831,3.98529,2509.3,2508.5,3.98629]
[1727795285832,3.98534,2509.2,2508.5,3.98629]
[1727795286038,3.98598,2508.8,2508.2,0.3962]
[1727795286271,3.98566,2509.0,2508.3,3.98675]
[1727795286458,1.6069,2509.3,2508.0,3.98723]
[1727795286662,1.6069,2509.3,2508.0,3.98714]
[1727795286663,3.98596,2508.8,2508.0,3.98714]
[1727795286882,1.6069,2509.3,2508.2,3.98686]
[1727795287181,1.6069,2509.3,2508.2,3.9869]
[1727795287387,1.6069,2509.3,2507.5,0.6112]
[1727795287587,3.98697,2508.2,2507.3,3.98831]
[1727795287791,3.0,2509.1,2507.5,3.98802]
[1727795287792,3.98664,2508.4,2507.5,3.98802]
[1727795288075,3.98664,2508.4,2507.1,0.3962]
[1727795288076,1.5794,2508.1,2507.1,0.3962]
[1727795288291,3.98849,2507.3,2506.5,4.7617182]
[1727795288483,3.98849,2507.3,2506.4,1.15835731]
[1727795288484,3.9877,2507.8,2506.4,0.7722382]
[1727795288670,3.98942,2506.7,2506.2,0.7722382]
[1727795288850,3.98942,2506.7,2506.2,0.73356414]
[1727795289087,3.98806,2507.5,2506.2,0.05567755]
[1727795289088,3.0,2507.5,2506.2,0.05567755]
[1727795289233,3.0,2507.5,2505.9,5.53500641]
[1727795289234,3.98933,2506.7,2506.0,5.53488641]
[1727795289585,3.98933,2506.7,2506.0,1.54447641]
[1727795289737,0.05,2508.6,2506.0,1.54447641]
[1727795289942,3.98864,2507.2,2506.3,5.53429641]
[1727795290155,3.98784,2507.7,2506.0,1.54447641]
[1727795290156,3.98994,2506.3,2506.0,1.54447641]
[1727795290383,3.9901,2506.2,2506.1,1.54447641]
[1727795290556,3.98994,2506.3,2506.1,1.54447641]
[1727795290760,3.99026,2506.1,2506.0,1.63822911]
[1727795290961,3.99026,2506.1,2505.7,1.63822911]
[1727795290962,3.99074,2505.8,2505.7,1.63822911]
[1727795291191,3.99074,2505.8,2505.5,1.63822911]
[1727795291192,5.59006,2505.6,2505.5,1.63822911]
[1727795291409,5.59006,2505.6,2505.2,0.38147202]
[1727795291410,3.99153,2505.3,2505.2,0.38147202]
[1727795291704,3.99153,2505.3,2504.3,4.02712047]
[1727795291705,5.63061,2504.5,2504.4,2.86730083]
[1727795291989,3.99313,2504.3,2504.1,1.66160083]
[1727795292200,3.99313,2504.3,2503.6,3.38699911]
[1727795292201,3.0,2503.8,2503.6,3.38699911]
[1727795292348,3.0,2503.8,2503.5,0.1232629]
[1727795292349,4.02264,2503.6,2503.5,0.1232629]
[1727795292543,4.02264,2503.6,2503.5,3.51026201]
[1727795292750,4.02264,2503.6,2503.5,0.1232629]
[1727795293064,3.99294,2504.5,2503.5,0.1232629]
[1727795293065,3.9933,2504.2,2503.5,0.1232629]
[1727795293266,3.99361,2504.0,2503.9,3.38743528]
[1727795293497,3.99343,2504.2,2503.5,0.1232629]
[1727795293498,3.9933,2504.2,2503.8,3.38743528]
[1727795293756,3.9933,2504.2,2503.8,3.38772305]
[1727795293905,1.5194,2504.7,2504.0,3.38772305]
[1727795293906,3.99268,2504.6,2504.0,3.38772305]
[1727795294070,3.99268,2504.6,2503.9,3.99374]
[1727795294071,1.5194,2505.2,2503.9,3.38772305]
[1727795294274,3.99345,2504.1,2503.6,3.38772305]
[1727795294470,5.52352,2503.8,2503.6,3.38772305]
[1727795294671,3.99408,2503.7,2503.6,3.38772305]
[1727795294855,6.99424,2503.6,2503.5,0.1232629]
[1727795295074,6.99424,2503.6,2503.2,4.02712047]
[1727795295075,3.99536,2502.9,2502.8,4.02712047]
[1727795295294,3.99536,2502.9,2502.8,2.8300891]
[1727795295514,3.0,2502.9,2502.7,0.005]
[1727795295720,4.04446,2503.5,2502.7,0.005]
[1727795295721,0.10762152,2505.5,2502.9,1.5454]
[1727795295926,0.10762152,2505.5,2504.0,3.9935]
[1727795295927,3.99224,2504.9,2504.0,3.9935]
[1727795296199,1.5729,2505.7,2504.0,3.9935]
[1727795296200,3.99207,2505.0,2504.1,3.99343]
[1727795296402,3.99171,2505.2,2504.2,4.07298651]
[1727795296556,1.5729,2505.7,2504.1,0.798701]
[1727795296762,1.5452,2506.9,2505.1,1.6471]
[1727795297076,25.99750731,2508.3,2506.1,3.55]
[1727795297077,3.98827,2507.4,2506.1,3.55]
[1727795297398,3.98872,2507.1,2505.8,3.99062]
[1727795297604,1.5452,2507.6,2505.8,3.99062]
[1727795297605,3.98836,2507.3,2506.0,4.54041]
[1727795297900,3.98869,2507.1,2506.0,0.55]
[1727795298102,3.98869,2507.1,2505.7,4.22889812]
[1727795298435,1.5452,2507.6,2505.4,2.53031717]
[1727795298585,1.5452,2507.6,2505.1,1.6471]
[1727795298586,3.99064,2505.9,2505.1,2.87599812]
[1727795298900,5.50227,2506.5,2504.9,0.81932959]
[1727795298901,3.98979,2506.4,2504.9,0.81932959]
[1727795299098,1.5126,2506.5,2504.9,0.81932959]
[1727795299099,3.99101,2505.7,2504.9,0.85367732]
[1727795299304,3.99034,2506.1,2505.0,0.85367594]
[1727795299486,3.99034,2506.1,2504.9,1.02758713]
[1727795299688,3.98995,2506.3,2504.9,1.02758713]
[1727795299904,3.9881,2507.5,2504.9,1.02758713]
[1727795299905,1.6102,2507.1,2505.2,0.81932959]
[1727795300062,3.98935,2506.7,2505.4,3.99131]
[1727795300260,3.98977,2506.5,2505.4,0.55]
[1727795300559,1.6102,2507.1,2505.4,0.55]
[1727795300560,3.98928,2506.8,2505.4,0.55]
[1727795300819,1.6102,2507.1,2505.3,3.35777277]
[1727795300820,1.6102,2507.1,2505.9,4.54047]
[1727795301024,3.98895,2507.0,2506.1,0.55]
[1727795301372,5.53108,2507.6,2506.1,0.55]
[1727795301373,1.5431,2507.6,2506.4,0.55]
[1727795301584,3.98779,2507.7,2506.5,3.98951]
[1727795301725,3.98747,2507.9,2506.6,2.74916863]
[1727795301929,3.98747,2507.9,2507.0,1.5812]
[1727795302128,3.98616,2508.7,2507.7,0.55]
[1727795302445,1.6485,2508.8,2506.4,0.453988]
[1727795302778,1.6485,2508.8,2506.2,0.81932959]
[1727795302779,3.98595,2508.9,2507.8,3.98745]
[1727795302975,3.98617,2508.7,2507.6,3.01722816]
[1727795303158,3.98625,2508.7,2507.6,3.98784]
[1727795303356,3.98625,2508.7,2507.5,1.5812]
[1727795303357,3.98657,2508.5,2507.5,1.5812]
[1727795303662,0.0102325,2509.1,2507.5,1.5812]
[1727795303663,4.0663618,2508.4,2507.5,1.5812]
[1727795303873,3.98634,2508.6,2507.6,0.55]
[1727795304162,3.98634,2508.6,2507.5,1.5812]
[1727795304163,3.98663,2508.4,2507.5,1.5812]
[1727795304373,3.98645,2508.5,2507.6,0.55]
[1727795304524,3.9957625,2509.1,2507.8,4.53753]
[1727795304871,3.9957625,2509.1,2507.7,0.611922]
[1727795304872,3.9957625,2509.1,2508.1,0.55]
[1727795305019,3.9957625,2509.1,2507.5,1.5812]
[1727795305020,3.98645,2508.5,2507.5,4.5812]
[1727795305220,3.98623,2508.7,2507.6,0.55]
[1727795305526,3.98613,2508.7,2507.7,3.98769]
[1727795305866,0.0797218,2508.6,2507.6,0.55]
[1727795306068,3.98688,2508.3,2507.6,0.55]
[1727795306577,3.98663,2508.4,2507.6,0.55]
[1727795306781,3.9875,2507.9,2506.9,3.98885]
[1727795307080,3.98713,2508.1,2507.1,3.98862]
[1727795307221,3.98713,2508.1,2507.2,3.9885]
[1727795307424,3.98713,2508.1,2507.1,3.98862]
[1727795307425,3.98741,2507.9,2507.1,3.98862]
[1727795307722,3.98713,2508.1,2507.1,3.98862]
[1727795307921,3.0,2509.2,2506.9,0.3962]
[1727795307922,3.9874,2507.9,2507.0,3.98868]
[1727795308124,3.9874,2507.9,2506.9,4.38513]
[1727795308357,3.98712,2508.1,2507.0,0.55]
[1727795308576,3.98712,2508.1,2507.1,3.98856]
[1727795308577,3.98735,2508.0,2507.1,3.98856]
[1727795308780,3.98735,2508.0,2507.0,0.55]
[1727795308781,3.98772,2507.7,2506.8,4.529]
[1727795308927,3.98768,2507.8,2506.9,4.06863864]
[1727795309130,3.98768,2507.8,2506.9,4.06862864]
[1727795309352,3.98584,2508.9,2506.9,4.06862864]
[1727795309353,3.98589,2508.9,2506.9,8.3274235]
[1727795309550,3.98752,2507.9,2507.0,4.06857205]
[1727795309760,3.98744,2507.9,2507.0,4.06857205]
[1727795310070,3.98744,2507.9,2507.1,0.0797497]
[1727795310223,3.98744,2507.9,2506.8,5.51803]
[1727795310425,3.98573,2509.0,2506.8,5.51803]
[1727795310426,0.0102325,2509.1,2506.8,2.380803]
[1727795310729,0.0102325,2509.1,2506.9,3.0]
[1727795310730,3.98771,2507.8,2506.9,3.0]
[1727795311083,3.98566,2509.0,2507.0,3.98876]
[1727795311084,3.98725,2508.0,2507.0,3.98876]
[1727795311395,3.98725,2508.0,2507.1,3.98865]
[1727795311396,3.98755,2507.8,2507.1,3.98865]
[1727795311663,3.98665,2508.4,2506.8,2.380803]
[1727795311664,3.9866,2508.4,2506.8,2.380803]
[1727795311894,3.98601,2508.8,2507.9,3.98728]
[1727795312174,4.0651218,2509.2,2508.3,3.98664]
[1727795312324,0.0797218,2509.3,2508.4,3.98654]
[1727795312529,3.98445,2509.8,2508.4,1.097318]
[1727795312791,0.71916201,2510.6,2509.0,8.58085]
[1727795312792,3.9838,2510.2,2509.0,8.58085]
[1727795313008,0.0797218,2510.1,2509.0,1.5952]
[1727795313267,3.9843,2509.9,2509.0,5.58085]
[1727795313568,3.98454,2509.7,2509.0,1.5952]
[1727795313783,1.5049,2510.6,2509.0,5.58085]
[1727795313784,3.98398,2510.1,2509.0,5.58085]
[1727795313930,4.0631118,2510.5,2509.0,9.138935]
[1727795314134,4.0631118,2510.5,2509.4,3.98491]
[1727795314135,0.0797218,2510.5,2509.4,3.98491]
[1727795314334,3.98317,2510.6,2509.0,5.153285]
[1727795314630,0.0797218,2510.7,2509.8,3.98422]
[1727795314821,4.70207201,2510.8,2509.0,5.153285]
[1727795314822,0.71916201,2510.8,2510.1,3.98378]
[1727795315054,0.71916201,2511.0,2509.7,1.594]
[1727795315272,0.71916201,2511.1,2510.4,3.98333]
[1727795315501,0.71916201,2511.3,2510.7,3.9828]
[1727795315693,1.07874301,2511.4,2510.5,1.6078]
[1727795315694,0.71916201,2511.4,2510.5,1.6078]
[1727795315974,0.71916201,2511.5,2510.9,3.98252]
[1727795316182,0.71916201,2511.6,2511.0,3.0]
[1727795316359,1.57335272,2511.9,2510.7,3.98282]
[1727795316360,3.98128,2511.8,2510.7,3.98282]
[1727795316564,0.85419071,2511.9,2510.6,3.0]
[1727795316766,0.1350287,2511.9,2511.2,3.98205]
[1727795316963,0.1350287,2511.9,2511.4,3.9818]
[1727795317181,0.1350287,2511.9,2511.5,0.07960815]
[1727795317334,0.1350287,2511.9,2511.0,3.0]
[1727795317335,0.85419071,2511.9,2510.6,0.8591]
[1727795317544,0.79888381,2511.8,2510.6,3.0]
[1727795317898,0.79888381,2511.8,2511.2,3.98213]
[1727795317899,0.71916201,2511.7,2511.2,3.98213]
[1727795318040,1.57335272,2511.9,2511.3,3.98192]
[1727795318041,0.85419071,2511.9,2511.3,3.98192]
[1727795318239,0.85419071,2511.9,2511.1,3.98231]
[1727795318240,0.71916201,2511.7,2511.1,3.98231]
[1727795318447,3.9829,2510.8,2510.0,5.59625]
[1727795318677,0.77507973,2510.9,2510.0,5.5962]
[1727795318874,3.98296,2510.7,2510.0,1.6123]
[1727795319086,3.98337,2510.5,2510.0,1.6123]
[1727795319286,3.98326,2510.6,2510.0,1.6123]
[1727795319483,5.1454796,2510.8,2510.0,1.6123]
[1727795319484,0.77507973,2510.8,2510.0,1.6123]
[1727795319783,0.77507973,2510.9,2510.2,3.98364]
[1727795319965,4.83769153,2510.8,2510.0,5.59634]
[1727795320166,2.74268098,2510.7,2510.0,5.59634]
[1727795320368,2.74268098,2510.7,2510.2,3.98359]
[1727795320369,0.78587466,2510.6,2510.2,3.98359]
[1727795320579,0.77507973,2510.7,2510.3,3.98353]
[1727795320892,1.1626196,2510.8,2510.0,5.59632]
[1727795320893,4.75789973,2510.8,2510.0,5.59632]
[1727795321041,3.98318,2510.6,2510.0,1.6123]
[1727795321243,0.78560095,2510.5,2510.0,1.6123]
[1727795321462,3.9839,2510.1,2509.5,3.98478]
[1727795321670,3.98479,2509.6,2508.9,1.6567]
[1727795321887,3.98506,2509.4,2508.9,1.6567]
[1727795322043,3.98506,2509.4,2508.5,3.98638]
[1727795322253,1.1626196,2510.8,2510.5,3.98327]
[1727795322459,1.1626196,2511.5,2510.6,1.05570616]
[1727795322668,1.1626196,2511.4,2511.2,3.98206]
[1727795322954,1.55304039,2511.6,2511.5,3.98168]
[1727795323259,1.93878195,2511.7,2511.5,3.98168]
[1727795323260,1.93878195,2511.7,2511.6,3.98152]
[1727795323461,2.46156704,2511.9,2511.7,6.98136]
[1727795323462,1.94462084,2511.8,2511.7,6.98136]
[1727795323668,0.1350287,2511.9,2511.8,8.07220027]
[1727795323669,3.62183237,2511.9,2511.8,8.07220027]
[1727795323984,3.6218641,2511.9,2511.8,6.9812]
[1727795324318,5.94840244,2511.9,2511.8,6.9812]
[1727795324622,5.95762151,2511.9,2511.8,8.637118]
[1727795324790,5.95762151,2511.9,2511.8,4.655918]
[1727795324985,3.6218641,2511.9,2511.8,8.637118]
[1727795325185,7.8722634,2511.9,2511.8,8.637118]
[1727795325384,7.8722634,2511.9,2511.8,6.9812]
[1727795325385,7.95760147,2511.9,2511.8,6.9812]
[1727795325586,7.11920938,2511.9,2511.8,6.9812]
[1727795325789,7.11920938,2511.9,2511.7,3.98136]
[1727795325790,10.32547003,2511.9,2511.7,3.98136]
[1727795326086,0.1350287,2511.9,2511.8,3.9812]
[1727795326288,4.14423331,2511.9,2511.8,3.9812]
[1727795326618,3.56515048,2511.9,2511.8,7.47677519]
[1727795326801,2.56721174,2511.9,2511.8,11.64666519]
[1727795327002,1.89840955,2511.9,2511.8,11.64666519]
[1727795327203,4.25313082,2511.9,2511.8,11.64666519]
[1727795327415,2.35897119,2512.9,2511.8,11.64666519]
[1727795327416,5.90033639,2513.3,2512.7,3.0]
[1727795327747,1.82063419,2513.2,2513.1,3.21989237]
[1727795327888,4.54675936,2513.2,2513.1,3.21989237]
[1727795328092,4.10865658,2513.2,2513.1,15.57366073]
[1727795328394,0.36852545,2513.6,2513.5,6.97851]
[1727795328597,5.90033639,2513.7,2513.6,6.97835]
[1727795328926,5.90033639,2513.7,2513.5,3.08020258]
[1727795328927,0.43829381,2513.7,2513.5,3.08020258]
[1727795329137,0.43829381,2513.7,2513.3,6.97877]
[1727795329138,2.797265,2513.6,2513.3,3.0]
[1727795329415,0.77429429,2513.5,2513.4,3.97867]
[1727795329578,3.13326548,2513.5,2513.3,3.97881]
[1727795329772,2.69497167,2513.4,2513.1,5.5926]
[1727795330004,12.40789497,2514.1,2513.1,5.5926]
[1727795330005,2.69497167,2513.3,2513.1,5.5926]
[1727795330187,3.12584534,2513.2,2513.1,8.5926]
[1727795330520,0.76682156,2513.2,2513.1,21.39442925]
[1727795330734,0.32856258,2513.2,2513.1,8.5926]
[1727795331023,7.41633643,2513.2,2513.1,8.5926]
[1727795331319,7.85479579,2513.2,2513.1,8.5926]
[1727795331578,0.76702194,2513.2,2513.1,8.5926]
[1727795331971,1.74589237,2514.3,2513.1,8.5926]
[1727795331972,4.04771494,2514.8,2514.1,3.97747]
[1727795332180,3.97566,2515.4,2514.2,1.6183]
[1727795332482,3.97484,2515.9,2513.8,1.6183]
[1727795332483,8.43030497,2514.8,2513.8,1.6183]
[1727795332640,8.43030497,2514.8,2513.6,3.0]
[1727795332849,12.40689497,2514.8,2513.7,3.97818]
[1727795333044,3.97622,2515.0,2513.7,3.97818]
[1727795333045,7.43030497,2513.9,2513.7,3.78128809]
[1727795333241,5.44489548,2515.2,2513.3,5.61857]
[1727795333242,1.74589237,2514.9,2513.3,5.61857]
[1727795333443,5.80156199,2513.6,2513.3,5.61857]
[1727795333745,4.1118387,2514.6,2513.3,3.97868]
[1727795333746,1.74589237,2514.4,2513.3,3.97868]
[1727795333946,1.74589237,2514.5,2514.0,3.9777]
[1727795334169,1.74589237,2514.5,2513.9,3.97777]
[1727795334459,0.1350287,2514.6,2513.8,3.97791]
[1727795334694,0.1350287,2514.6,2513.9,3.97785]
[1727795334905,0.1350287,2514.6,2514.0,3.9777]
[1727795334906,1.74589237,2514.5,2514.0,3.9777]
[1727795335103,0.1350287,2514.6,2514.1,0.07953317]
[1727795335317,0.1350287,2514.6,2513.9,3.97777]
[1727795335318,1.74589237,2514.5,2513.9,3.97777]
[1727795335587,1.74589237,2514.4,2513.9,3.97777]
[1727795335818,1.74589237,2514.3,2513.5,6.9784]
[1727795335981,4.51529247,2513.6,2513.5,6.9784]
[1727795336289,4.51529247,2513.8,2513.7,3.97819]
[1727795336504,1.74589237,2513.8,2513.7,3.97819]
[1727795336674,0.1350287,2514.6,2513.7,3.97819]
[1727795336675,1.74589237,2514.0,2513.7,3.97819]
[1727795336886,0.55,2513.9,2513.8,0.01195173]
[1727795337085,2.29589237,2513.9,2513.8,0.01195173]
[1727795337248,1.74589237,2513.9,2513.8,4.06953899]
[1727795337449,0.55,2513.8,2513.5,8.5372]
[1727795337754,3.87158571,2513.8,2513.7,3.0]
[1727795338067,4.51529247,2514.5,2514.0,3.97772]
[1727795338068,3.87158571,2514.1,2514.0,3.97772]
[1727795338251,4.65032117,2514.6,2514.5,6.97693]
[1727795338448,4.65032117,2514.6,2514.1,3.97751]
[1727795338449,6.13625141,2514.6,2514.1,3.0]
[1727795338694,4.51529247,2514.5,2514.4,3.97709]
[1727795339045,4.51529247,2514.5,2514.2,3.97726]
[1727795339046,4.51861411,2514.5,2514.2,3.97726]
[1727795339307,0.1350287,2514.6,2514.5,3.97693]
[1727795339607,0.1350287,2514.6,2514.2,6.97733]
[1727795339751,0.1350287,2514.6,2514.5,3.97693]
[1727795339952,0.1350287,2514.6,2514.4,3.97698]
[1727795340148,2.08568717,2514.6,2514.4,3.97698]
[1727795340353,2.08568717,2514.6,2513.5,1.5587]
[1727795340354,2.47569321,2514.6,2514.3,3.97724]
[1727795340546,0.1350287,2514.6,2514.4,7.95395]
[1727795340790,0.1350287,2514.6,2514.5,3.97693]
[1727795340992,0.1350287,2514.6,2514.5,4.05644349]
[1727795341205,0.1350287,2514.6,2512.7,3.97963]
[1727795341206,0.55,2514.5,2513.6,3.97822]
[1727795341412,4.31981579,2514.5,2513.6,3.97822]
[1727795341696,4.31981579,2514.5,2513.0,1.5271]
[1727795341697,0.34288579,2514.5,2513.0,1.5271]
[1727795341851,0.42241896,2514.5,2513.1,3.97902]
[1727795342052,0.34288579,2514.5,2513.5,3.97836]
[1727795342298,0.07953317,2514.4,2513.1,4.47415858]
[1727795342503,0.07953317,2514.4,2512.3,5.20919812]
[1727795342504,3.97725,2514.3,2512.7,3.97973]
[1727795342796,3.97725,2514.3,2512.0,5.61948814]
[1727795342797,3.97853,2513.5,2511.9,1.6037]
[1727795342995,1.6649,2513.6,2511.9,1.6037]
[1727795342996,1.6649,2513.6,2512.0,0.07957715]
[1727795343193,1.6649,2513.6,2512.7,3.97967]
[1727795343407,1.6649,2513.6,2512.6,3.97981]
[1727795343408,0.55,2513.5,2512.6,3.97981]
[1727795343893,0.55,2513.5,2512.4,0.46348191]
[1727795344123,0.55,2513.3,2512.0,3.98082]
[1727795344304,0.55,2513.3,2512.1,3.98072]
[1727795344305,0.07953317,2513.2,2512.1,3.98072]
[1727795344521,0.07953317,2513.2,2511.9,1.6037]
[1727795344522,0.55,2513.1,2511.5,3.98152]
[1727795344659,0.55,2513.1,2511.1,3.98222]
[1727795344660,3.98011,2512.5,2511.1,3.98222]
[1727795344870,3.98011,2512.5,2510.9,3.98255]
[1727795344871,4.53061,2512.2,2510.9,3.98255]
[1727795345105,1.5301,2512.3,2510.5,3.9832]
[1727795345106,3.98106,2511.9,2510.5,3.9832]
[1727795345288,0.62953317,2511.8,2510.5,3.98317]
[1727795345601,0.62953317,2511.8,2510.7,3.98292]
[1727795345919,0.62953317,2511.8,2510.3,1.5317]
[1727795345920,0.55,2511.6,2510.3,1.5317]
[1727795346192,0.55,2511.6,2509.7,2.0]
[1727795346193,4.53218,2511.2,2509.7,5.51406]
[1727795346408,0.55,2511.0,2509.5,3.98483]
[1727795346737,0.07953317,2511.1,2509.1,1.5296]
[1727795346738,0.55,2510.8,2509.1,1.5296]
[1727795346941,5.64023,2511.5,2509.6,3.98468]
[1727795346942,0.55,2510.9,2509.6,3.98468]
[1727795347100,0.55,2510.7,2509.4,3.98501]
[1727795347430,0.55,2510.5,2509.1,1.5296]
[1727795347588,0.55,2510.5,2509.5,4.35269711]
[1727795347792,1.5535,2511.1,2509.6,3.98463]
[1727795348024,0.55,2511.0,2509.7,0.80316082]
[1727795348350,0.55,2511.0,2509.2,7.70499925]
[1727795348351,0.55,2510.8,2509.4,3.98495]
[1727795348645,3.98218,2511.2,2509.2,0.69840511]
[1727795348646,3.9814,2511.7,2509.7,2.0]
[1727795348832,3.9814,2511.7,2510.2,3.98368]
[1727795349140,3.9817,2511.5,2510.2,0.53390711]
[1727795349436,1.5042,2511.8,2510.6,3.98308]
[1727795349644,0.07953317,2511.7,2510.7,0.398308]
[1727795349786,0.07953317,2511.7,2510.4,3.0]
[1727795349787,0.55,2511.7,2510.4,3.0]
[1727795349983,1.5042,2511.8,2510.5,2.15150711]
[1727795350209,1.5042,2511.8,2510.2,3.98373]
[1727795350210,1.58373317,2511.8,2510.2,3.98373]
[1727795350543,1.5042,2511.8,2510.6,3.0]
[1727795350854,1.5042,2511.8,2510.5,3.98325]
[1727795350855,3.98264,2510.9,2509.5,5.59105]
[1727795351136,1.608,2510.8,2509.5,1.6062]
[1727795351735,0.55,2510.7,2509.5,5.59105]
[1727795352034,0.55,2510.7,2509.6,0.559105]
[1727795352276,1.537,2511.4,2509.8,2.0]
[1727795352548,1.537,2511.4,2509.9,3.98417]
[1727795352785,3.98275,2510.9,2509.6,0.559105]
[1727795352918,4.06235317,2510.8,2509.6,0.559105]
[1727795353237,1.5706,2510.7,2508.9,0.32702342]
[1727795353448,1.5706,2510.7,2508.7,1.5928]
[1727795353449,0.07953317,2510.6,2508.7,1.5928]
[1727795353731,0.07953317,2510.6,2509.4,3.98495]
[1727795353732,0.55,2510.6,2509.4,3.98495]
[1727795353948,0.55,2510.6,2509.0,7.70499925]
[1727795353949,0.55,2510.6,2509.5,0.398495]
[1727795354275,0.55,2510.6,2509.0,0.32702342]
[1727795354276,4.53386,2510.2,2509.0,0.32702342]
[1727795354560,3.98448,2509.8,2508.5,3.98643]
[1727795354760,0.55,2509.9,2508.4,3.98648]
[1727795354761,0.55,2509.6,2508.4,3.98648]
[1727795355069,0.55,2509.4,2508.5,0.438268]
[1727795355217,0.55,2509.4,2508.2,5.96834923]
[1727795355218,3.98554,2509.1,2508.2,0.32703923]
[1727795355418,5.62172,2509.7,2507.7,1.5891]
[1727795355419,0.07953317,2509.6,2507.7,1.5891]
[1727795355620,1.6371,2509.7,2508.6,3.98621]
[1727795355859,1.6371,2509.7,2508.2,3.98687]
[1727795355860,0.55,2509.6,2508.2,3.98687]
[1727795356070,1.6413,2510.2,2509.4,3.98491]
[1727795356372,1.6413,2510.2,2509.5,0.398491]
[1727795356686,1.6057,2511.2,2509.6,3.98458]
[1727795356818,1.6057,2511.2,2510.1,3.98376]
[1727795357019,1.5832,2512.0,2510.9,3.98251]
[1727795357257,1.5832,2512.0,2510.3,3.0]
[1727795357258,1.5832,2512.0,2510.8,7.70499925]
[1727795357469,1.5832,2512.0,2511.5,3.98158]
[1727795357629,0.07953317,2512.6,2511.2,3.0]
[1727795358008,3.98086,2512.1,2511.2,3.0]
[1727795358121,0.07953317,2512.1,2510.9,1.07049993]
[1727795358317,3.98089,2512.1,2510.9,6.9826]
[1727795358523,1.5832,2512.4,2511.5,3.98153]
[1727795358720,3.98064,2512.2,2511.0,3.98246]
[1727795358991,3.98064,2512.2,2510.6,1.6118]
[1727795358992,0.0242196,2512.2,2511.3,3.98199]
[1727795359128,0.0242196,2512.2,2511.1,3.0]
[1727795359320,0.0242196,2512.2,2510.9,3.0]
[1727795359321,3.98118,2511.9,2510.9,3.0]
[1727795359645,3.98098,2512.0,2510.9,6.98253]
[1727795359968,3.98098,2512.0,2510.3,6.07852244]
[1727795359969,0.0242196,2512.0,2510.3,2.09500244]